[Event "1000GM Schev-A February 2024"]
[Site "Santa Clara"]
[Date "2024.02.19"]
[Round "5.2"]
[White "Jimenez Garcia, Emmanuel"]
[Black "Sivakumar, Shaashwath"]
[Result "1-0"]
[ECO "B55"]
[WhiteElo "2394"]
[BlackElo "2205"]
[Annotator "TA"]
[PlyCount "69"]
[EventDate "2024.02.13"]
[EventType "schev"]
[EventCountry "USA"]
[SourceTitle "playchess.com"]
[Source "ChessBase"]
[SourceQuality "1"]
[TimeControl "5400+30"]

{[%evp 9,69,0,21,18,25,22,52,25,35,44,39,22,38,32,28,19,7,27,17,-35,5,6,16,20,36,32,40,23,39,0,0,0,0,0,22,0,72,64,139,116,166,160,195,189,239,270,389,354,397,395,406,356,356,349,347,345,937,947,949,891,1797,2187]} 1. e4 {[%emt 0:00:18]} c5 {[%emt 0:00:05]} 2. Nf3 {[%emt 0:00:08]} d6 {[%emt 0:00:03]} 3. d4 {[%emt 0:00:19]} cxd4 {[%emt 0:00:05]} 4. Nxd4 {[%emt 0:00:09]} Nf6 {[%emt 0:00:04]} 5. Bd3 {[%emt 0:00:18]} a6 {[%emt 0:00:25]} 6. c4 {[%emt 0:01:21]} g6 {[%emt 0:00:42]} 7. Nc3 {[%emt 0:02:47]} Bg7 {[%emt 0:00:20]} 8. h3 {[%emt 0:05:58] White is slightly better.} O-O {[%emt 0:00:50]} 9. Be3 {[%emt 0:00:14]} b6 {[%emt 0:12:53]} 10. O-O {[%emt 0:01:29]} Bb7 {[%emt 0:00:04]} 11. a4 {[%emt 0:04:23]} Nbd7 {[%emt 0:00:19] [#]} 12. a5 $1 {[%emt 0:00:51]} Nc5 {[%emt 0:09:27]} 13. axb6 {[%emt 0:01:56]} Qxb6 {[%emt 0:00:57]} 14. Na4 {[%emt 0:20:00]} (14. Qc2 $11) 14... Qc7 {[%emt 0:05:29]} (14... Nxa4 $5 15. Qxa4 Ng4 16. hxg4 Bxd4 17. Bxd4 Qxd4 $15) 15. f3 {[%emt 0:00:16]} Nxd3 {[%emt 0:01:37]} 16. Qxd3 {[%emt 0:00:07]} Nd7 {[%emt 0:11:36]} 17. Rfc1 {[%emt 0:11:17]} Rac8 {[%emt 0:04:13]} 18. Qa3 {[%emt 0:06:02]} Rfd8 {[%emt 0:14:41]} 19. b4 {[%emt 0:02:08][%cal Bb2b4,Bb4b5][%mdl 32]} Ne5 {[%emt 0:01:05]} 20. Nb2 {[%emt 0:02:00]} e6 {[%emt 0:02:52]} 21. b5 {[%emt 0:06:21]} Ra8 {[%emt 0:09:09] [#] ...axb5 would now be deadly.} 22. Qb4 {[%emt 0:11:58]} a5 {[%emt 0:05:39]} (22... axb5 $11 23. cxb5 Rxa1 24. Rxa1 Qb8) 23. Qd2 {[%emt 0:04:55]} Nd7 {[%emt 0:19:25]} (23... a4 $14) 24. Ra3 {[%emt 0:00:44]} Nc5 {[%emt 0:00:00]} (24... Qc5 $16 25. Rb3 (25. Rxa5 Rxa5 26. Qxa5 Ra8 $14) 25... Qc7) 25. Na4 $18 {[%emt 0:06:20]} Rac8 {[%emt 0:00:00]} 26. Nb3 {[%emt 0:00:46]} Nxb3 {[%emt 0:00:00]} (26... Ra8 {is a better defense.} 27. Bf4 (27. b6 Qc6 $16) 27... Qe7) 27. Rxb3 {[%emt 0:00:02]} d5 {[%emt 0:00:00]} (27... Qe7 {was worth a try.} 28. Rd3 (28. Qxa5 Ra8 $18) 28... h6 29. Bxh6 Bxh6 30. Qxh6 d5) 28. exd5 {[%emt 0:02:39]} exd5 {[%emt 0:00:00]} 29. c5 {[%emt 0:00:01][%cal Bc4c5,Bc5c6][%mdl 32]} d4 {[%emt 0:00:00]} 30. Bf4 {[%emt 0:00:02]} Be5 {[%emt 0:00:00]} 31. Bxe5 {[%emt 0:00:16]} Qxe5 {[%emt 0:00:00]} 32. c6 {[%emt 0:00:15]} (32. Qxa5 d3 33. Qd2 Qd4+ 34. Kh1 Qxa4 $11) 32... d3 $2 {[%emt 0:00:00]} (32... Bxc6 33. Rxc6 (33. bxc6 Qd5 $18) 33... Rxc6 34. bxc6 Qc7) 33. Rxd3 {[%emt 0:00:35] White is clearly winning.} (33. cxb7 $2 {is the wrong capture.} Rxc1+ 34. Qxc1 d2 $19) 33... Rxd3 {[%emt 0:00:04]} 34. Qxd3 {[%emt 0:00:16]} Qf4 {[%emt 0:00:15]} 35. Rc4 {[%emt 0:01:00] Weighted Error Value: White=0.12 (very precise) /Black=0.30.  Mistake:       	White=1     	Black=6      Inaccurate:     	White=2     	Black=2      OK:         	White=11    	Black=10     Best:        	White=3     	---} (35. cxb7 Qxc1+ 36. Qf1 Qxf1+ 37. Kxf1 Rb8 $11) 1-0

[Event "1000GM Schev-A February 2024"]
[Site "Santa Clara"]
[Date "2024.02.19"]
[Round "5.3"]
[White "Martin Carmona, Gaston Manuel"]
[Black "Zhou, Ruoyu"]
[Result "1-0"]
[ECO "E06"]
[WhiteElo "2343"]
[BlackElo "2112"]
[Annotator "TA"]
[PlyCount "187"]
[EventDate "2024.02.13"]
[EventType "schev"]
[EventCountry "USA"]
[SourceTitle "playchess.com"]
[Source "ChessBase"]
[SourceQuality "1"]
[TimeControl "5400+30"]

{[%evp 86,187,10,10,10,0,10,0,0,0,18,12,18,22,119,116,116,63,97,11,175,176,348,334,295,235,236,213,218,227,176,162,190,196,268,225,159,147,268,253,316,284,343,326,414,387,467,440,426,341,398,366,410,329,352,337,481,486,2205,2194,1711,1562,29969,29967,29963,29967,29972,29970,29970,29971,29973,29973,29975,29976,29976,29976,29975,29976,29976,29977,29977,29978,29978,29979,29979,29980,29980,29981,29981,29982,29982,29983,29983,29984,29984,29985,29985,29986,29986,29987,29987,29988,29990,29991]} 1. Nf3 {[%emt 0:03:48]} d5 {[%emt 0:02:25]} 2. g3 {[%emt 0:01:24]} e6 {[%emt 0:00:13]} 3. Bg2 {[%emt 0:00:06]} Be7 {[%emt 0:00:17]} 4. c4 {[%emt 0:00:26]} Nf6 {[%emt 0:00:17]} 5. d4 {[%emt 0:00:44]} O-O {[%emt 0:00:12]} 6. Qc2 {[%emt 0:03:43]} dxc4 {[%emt 0:01:22]} 7. Qxc4 {[%emt 0:00:32]} a6 {[%emt 0:06:22]} 8. Bf4 {[%emt 0:07:48]} Nd5 {[%emt 0:09:39] E06: Katalanisch.} 9. O-O {[%emt 0:00:23]} Nxf4 {[%emt 0:04:08]} 10. gxf4 {[%emt 0:00:04]} c6 $146 {[%emt 0:07:40]} ({Predecessor:} 10... c5 11. dxc5 Qc7 12. Nbd2 Qxc5 13. Qxc5 Bxc5 14. Rac1 Ba7 15. Nc4 Nc6 16. Rfd1 f6 {1-0 Lenderman,A (2637)-Harvey,M (2397) PRO League Stage rapid 2019 (2)}) 11. Rd1 {[%emt 0:01:29]} Nd7 {[%emt 0:02:56]} 12. Qc2 {[%emt 0:00:47]} Nf6 {[%emt 0:01:48]} 13. e3 {[%emt 0:01:25]} Bd7 {[%emt 0:01:04]} 14. Nc3 {[%emt 0:01:54]} Qc7 {[%emt 0:05:23]} 15. Rac1 {[%emt 0:02:09]} Rac8 {[%emt 0:07:51]} 16. Ne5 {[%emt 0:00:19]} Rfd8 {[%emt 0:03:03]} 17. a3 {[%emt 0:01:48]} Qb8 {[%emt 0:08:32]} 18. Na4 {[%emt 0:01:09]} Be8 {[%emt 0:36:18]} 19. Qb3 {[%emt 0:00:54]} Nd5 {[%emt 0:00:00]} 20. Nc5 {[%emt 0:01:49]} Bxc5 {[%emt 0:00:00]} 21. dxc5 {[%emt 0:01:36]} Rc7 {[%emt 0:00:00]} 22. Bh3 {[%emt 1:07:13]} Re7 {[%emt 0:00:00]} 23. Nc4 {[%emt 0:00:00]} f5 {[%emt 0:00:00]} 24. Bg2 {[%emt 0:00:00]} Bh5 {[%emt 0:00:00]} 25. Rd4 {[%emt 0:00:00]} Rf8 {[%emt 0:00:00]} 26. f3 {[%emt 0:00:00]} Kh8 {[%emt 0:00:00]} 27. Kf2 {[%emt 0:00:00]} Rg8 {[%emt 0:00:00]} 28. h4 {[%emt 0:00:00]} h6 {[%emt 0:00:00]} 29. Rh1 {[%emt 0:00:00]} Qa7 {[%emt 0:00:00]} 30. Nb6 {[%emt 0:00:00]} Qb8 {[%emt 0:00:00]} 31. Nxd5 {[%emt 0:00:00]} exd5 {[%emt 0:00:00]} 32. Qc3 {[%emt 0:00:00]} Qc7 {[%emt 0:00:00]} 33. Bh3 {[%emt 0:00:00]} Rf8 {[%emt 0:00:00]} 34. Rd3 {[%emt 0:00:00]} Qd8 {[%emt 0:00:00]} 35. Bf1 {[%emt 0:00:00]} Rfe8 {[%emt 0:00:00]} 36. Qd4 {[%emt 0:00:00]} Re6 {[%emt 0:00:00]} 37. b4 {[%emt 0:00:00]} Qe7 {[%emt 0:00:00]} 38. Rb3 {[%emt 0:00:00]} Bg6 {[%emt 0:00:00]} 39. h5 {[%emt 0:00:00]} Bh7 {[%emt 0:00:00]} 40. Rh3 {[%emt 0:00:00]} Rf6 {[%emt 0:00:32]} 41. Rg3 {[%emt 0:00:00]} Bg8 {[%emt 0:00:59]} 42. Bd3 {[%emt 0:00:00]} Qf7 {[%emt 0:01:25]} 43. Rh3 {[%emt 0:00:00]} Bh7 {[%emt 0:00:42]} 44. Rb1 {[%emt 0:00:00]} Rfe6 {[%emt 0:00:52]} 45. Rg1 {[%emt 0:00:00]} R6e7 {[%emt 0:00:52]} 46. Rhg3 {[%emt 0:00:00]} Qf6 {[%emt 0:02:07]} 47. a4 {[%emt 0:00:00]} Qxd4 {[%emt 0:01:09]} 48. exd4 {[%emt 0:00:00]} Re3 {[%emt 0:00:32]} 49. Rd1 {[%emt 0:00:00]} R3e7 {[%emt 0:00:25]} (49... Kg8 $11) 50. Rgg1 $16 {[%emt 0:00:00]} Kg8 {[%emt 0:00:40]} 51. Ra1 {[%emt 0:00:00]} (51. b5 $16) 51... Re3 {[%emt 0:00:25] [#]} 52. Rgd1 {[%emt 0:00:00]} (52. Ra3 $1 $16) 52... Kf7 $2 {[%emt 0:00:33]} (52... g5 $11) 53. b5 $18 {[%emt 0:00:00]} g6 $2 {[%emt 0:00:48]} (53... a5 {war angesagt.} 54. bxc6 bxc6) 54. bxc6 {[%emt 0:00:00]} bxc6 {[%emt 0:00:02]} 55. Rab1 {[%emt 0:00:00]} gxh5 {[%emt 0:01:10]} 56. Rb6 {[%emt 0:00:00]} (56. Bxa6 Ra3 $14) 56... h4 {[%emt 0:00:45]} 57. Rxc6 {[%emt 0:00:00]} Bg6 {[%emt 0:00:18]} 58. Rc7+ {[%emt 0:00:00]} (58. Rxa6 Bh5 59. Ra7+ (59. Rxh6 Rxf3+ 60. Kg2 Rg8+ 61. Kh2 Rf2+ 62. Kh3 Bg4+ 63. Kxh4 Rh2+ 64. Kg3 Rxh6 65. Rg1 Be2+ 66. Kf2 Rh2+ 67. Ke3 Rxg1 68. Bxe2 Re1 69. Kd3 Rexe2 70. a5 Rc2 71. a6 Rc4 72. a7 Rhc2 73. a8=Q R4c3#) 59... Kf8 $11) (58. Be4 $2 fxe4 59. Kxe3 exf3+ 60. Kd2 (60. Kf2 $2 Re2+ 61. Kf1 h3 $19) 60... Re2+ 61. Kc3 f2 $19) 58... Kf8 {[%emt 0:00:26]} 59. Rc8 {[%emt 0:02:49]} (59. Bxa6 Bh5 60. Kg1 R8e6 61. Rc8+ Kf7 $11) 59... Rxf3+ {[%emt 0:00:28]} (59... Rxc8 $142 60. Kxe3 Be8) 60. Kxf3 $18 {[%emt 0:00:07]} Rxc8 {[%emt 0:00:23]} 61. Rh1 {[%emt 0:00:29]} (61. Bxa6 $6 Bh5+ 62. Kf2 Ra8 $11) 61... Bh5+ {[%emt 0:00:21]} (61... Rb8 $16) 62. Ke3 {[%emt 0:00:11]} Rc6 {[%emt 0:01:19]} 63. Rxh4 {[%emt 0:00:08]} Bg4 {[%emt 0:00:06]} 64. Rh1 {[%emt 0:00:24]} Ke7 {[%emt 0:01:14]} 65. Rb1 {[%emt 0:00:14]} h5 {[%emt 0:00:16]} 66. Rb7+ {[%emt 0:00:20]} Kd8 {[%emt 0:00:19]} 67. Rh7 {[%emt 0:01:15]} Re6+ {[%emt 0:00:22]} 68. Kf2 {[%emt 0:00:24]} Rg6 {[%emt 0:00:44]} 69. Bf1 {[%emt 0:01:24]} Bd1 {[%emt 0:01:07]} 70. a5 {[%emt 0:00:37]} Rg4 {[%emt 0:00:20]} (70... Bc2 {ist eine bessere Verteidigung.} 71. Rxh5 Rg4) 71. c6 $18 {[%emt 0:01:06]} (71. Rxh5 $2 Rxf4+ 72. Kg3 Rxf1 $19) 71... Rxf4+ {[%emt 0:02:27]} (71... Rg6 $142 72. Rd7+ (72. Bxa6 Rxc6 73. Bb5 Rc2+ 74. Ke1 Rc1 $18) 72... Ke8 73. Rxd5 (73. Bxa6 Rxc6 74. Ra7 Rc2+ 75. Kg3 Kd8 $18) (73. Rc7 Kd8 $16) 73... Rxc6 74. Re5+ (74. Rxf5 h4 $18) 74... Kd8 75. Rxf5 Bg4) 72. Ke1 $18 {[%emt 0:00:30]} Rxf1+ {[%emt 0:00:10]} 73. Kxf1 {[%emt 0:00:01]} Ba4 {[%emt 0:00:10]} 74. Rxh5 {[%emt 0:04:06]} Kc7 {[%emt 0:00:34]} 75. Rh6 {[%emt 0:00:46]} Bxc6 {[%emt 0:00:36]} 76. Rf6 {[%emt 0:00:24]} Bb5+ {[%emt 0:00:33]} 77. Kf2 {[%emt 0:00:01]} Bd3 {[%emt 0:01:42]} 78. Ke3 {[%emt 0:00:02]} Be4 {[%emt 0:00:21]} 79. Rxa6 {[%emt 0:00:13]} Kb7 {[%emt 0:00:07]} 80. Rb6+ {[%emt 0:00:07]} Ka7 {[%emt 0:00:15]} 81. Rf6 {[%emt 0:00:02]} Kb7 {[%emt 0:00:14]} 82. Kf4 {[%emt 0:00:07]} Ka7 {[%emt 0:00:09]} 83. Ke5 {[%emt 0:00:52]} Kb7 {[%emt 0:00:15]} 84. Rxf5 {[%emt 0:00:38]} Ka6 {[%emt 0:00:10]} 85. Rf6+ {[%emt 0:00:09]} Kxa5 {[%emt 0:00:18]} 86. Rd6 {[%emt 0:00:04]} Bg2 {[%emt 0:00:22]} 87. Rxd5+ {[%emt 0:00:05]} Kb6 {[%emt 0:00:09]} 88. Rc5 {[%emt 0:00:04]} Bb7 {[%emt 0:00:22]} 89. Rc1 {[%emt 0:00:04]} Ba6 {[%emt 0:00:41]} 90. d5 {[%emt 0:00:05]} Be2 {[%emt 0:00:18]} 91. d6 {[%emt 0:00:06]} Bg4 {[%emt 0:00:07]} 92. Kf6 {[%emt 0:00:05]} Bd7 {[%emt 0:00:35]} 93. Ke7 {[%emt 0:00:04]} Bc6 {[%emt 0:00:32]} 94. Rxc6+ {[%emt 0:00:06]} 1-0

[Event "1000GM Schev-A February 2024"]
[Site "Santa Clara"]
[Date "2024.02.19"]
[Round "5.4"]
[White "Rajaram, Rohan"]
[Black "Arenas, David"]
[Result "1/2-1/2"]
[ECO "D27"]
[WhiteElo "2151"]
[BlackElo "2406"]
[Annotator "TA"]
[PlyCount "41"]
[EventDate "2024.02.13"]
[EventType "schev"]
[EventCountry "USA"]
[SourceTitle "playchess.com"]
[Source "ChessBase"]
[SourceQuality "1"]
[TimeControl "5400+30"]

{[%evp 16,41,20,-1,0,15,29,0,0,0,0,0,6,0,6,-3,3,0,0,0,2,0,12,14,8,-8,-7,-12]} 1. d4 {[%emt 0:03:52]} d5 {[%emt 0:00:44]} 2. c4 {[%emt 0:00:10]} dxc4 {[%emt 0:00:08]} 3. e3 {[%emt 0:00:12]} Nf6 {[%emt 0:00:18]} 4. Bxc4 {[%emt 0:00:10]} e6 {[%emt 0:00:06]} 5. Nf3 {[%emt 0:00:08]} a6 {[%emt 0:00:06]} 6. O-O {[%emt 0:00:19]} c5 {[%emt 0:00:09]} 7. dxc5 {[%emt 0:00:47]} Qxd1 {[%emt 0:01:02]} 8. Rxd1 {[%emt 0:00:10]} Bxc5 {[%emt 0:00:03]} 9. Nc3 {[%emt 0:03:12]} b5 {[%emt 0:01:27]} 10. Be2 {[%emt 0:01:24]} Nbd7 {[%emt 0:00:28]} 11. b3 {[%emt 0:00:50]} Bb7 {[%emt 0:02:22] The position is equal.} 12. Bb2 {[%emt 0:01:17]} Rc8 {[%emt 0:00:55]} 13. Rac1 {[%emt 0:01:14]} O-O {[%emt 0:00:08]} 14. Ne1 {[%emt 0:05:21]} Nb6 {[%emt 0:00:42]} 15. Nd3 {[%emt 0:01:20] [#] Threatens to win with Nxc5.} Bd6 {[%emt 0:02:31]} 16. Bf3 {[%emt 0:04:40]} Bxf3 {[%emt 0:12:49]} 17. gxf3 {[%emt 0:00:09]} Rc7 {[%emt 0:02:17]} 18. Ne2 {[%emt 0:04:17]} Rfc8 {[%emt 0:01:16]} 19. Rxc7 {[%emt 0:00:26]} Rxc7 {[%emt 0:00:02]} 20. Rc1 {[%emt 0:02:52]} Rxc1+ {[%emt 0:00:54]} 21. Ndxc1 {[%emt 0:01:52] A rather calm draw.   Weighted Error Value: White=0.07 (flawless) /Black=0.04 (flawless) .  Inaccurate:     	White=1     	---        OK:         	White=4     	Black=2} 1/2-1/2

[Event "1000GM Schev-A February 2024"]
[Site "Santa Clara"]
[Date "2024.02.19"]
[Round "5.5"]
[White "Sivakumar, Shaaketh"]
[Black "Zuluaga Mancilla, Cesar"]
[Result "1/2-1/2"]
[ECO "B40"]
[WhiteElo "2364"]
[BlackElo "2251"]
[Annotator "TA"]
[PlyCount "51"]
[EventDate "2024.02.13"]
[EventType "schev"]
[EventCountry "USA"]
[SourceTitle "playchess.com"]
[Source "ChessBase"]
[SourceQuality "1"]
[TimeControl "5400+30"]

{[%evp 9,51,43,57,39,44,33,53,28,35,23,39,29,40,26,29,26,43,23,22,20,20,35,32,13,23,7,18,14,22,20,35,30,30,30,26,28,25,25,30,19,21,24,25,9]} 1. e4 {[%emt 1:31:00]} c5 {[%emt 0:10:29]} 2. Nf3 {[%emt 0:00:00]} e6 {[%emt 0:00:12]} 3. g3 {[%emt 0:00:00]} a6 {[%emt 0:01:00]} 4. Bg2 {[%emt 0:00:00]} d6 {[%emt 0:00:28]} 5. O-O {[%emt 0:00:00]} Nc6 {[%emt 0:00:53]} 6. c3 {[%emt 0:00:00][%cal Bc2c3,Bc3d4,Bd4d5][%mdl 32]} Nf6 {[%emt 0:00:38]} 7. Qe2 {[%emt 0:00:00]} e5 {[%emt 0:00:39] [#]} 8. d4 $1 {[%emt 0:00:00] White is slightly better.} cxd4 {[%emt 0:06:47]} 9. cxd4 {[%emt 0:00:00]} Bg4 {[%emt 0:00:01]} 10. d5 {[%emt 0:00:00]} Nd4 {[%emt 0:01:23]} 11. Qd3 {[%emt 0:00:00]} Bxf3 {[%emt 0:02:10]} 12. Bxf3 {[%emt 0:05:30]} Rc8 {[%emt 0:06:50]} 13. Nc3 {[%emt 0:00:00]} Nxf3+ {[%emt 0:02:01]} 14. Qxf3 {[%emt 0:00:00]} Be7 {[%emt 0:00:42][%cal Bf8e7,Be7d8,Bd8a5,Ba5b4][%mdl 32]} 15. Be3 {[%emt 0:00:00]} O-O {[%emt 0:00:32]} 16. Qe2 {[%emt 0:00:00]} Qd7 {[%emt 0:02:47]} 17. f3 {[%emt 0:00:00]} (17. Kg2 {is interesting.} Qg4 18. f3 Qh5 19. Rac1) 17... Bd8 {[%emt 0:00:19]} 18. Rfc1 {[%emt 0:00:00]} Ba5 {[%emt 0:00:32]} 19. Rab1 {[%emt 0:00:00][%cal Ba1b1,Bb1c1,Bc1c4][%mdl 32]} Bb4 {[%emt 0:06:27]} 20. Nd1 {[%emt 0:00:00]} Rxc1 {[%emt 0:00:09]} 21. Rxc1 {[%emt 0:00:00]} Rc8 {[%emt 0:00:06]} 22. Rc4 {[%emt 0:00:00]} Ba5 {[%emt 0:02:42]} 23. b4 {[%emt 0:00:00]} Bd8 {[%emt 0:02:04]} 24. Qc2 {[%emt 0:00:00]} Rxc4 {[%emt 0:03:56]} 25. Qxc4 {[%emt 0:00:00]} h5 {[%emt 0:00:44]} 26. h4 {[%emt 0:00:00] Weighted Error Value: White=0.08 (flawless) /Black=0.05 (flawless) .  OK:         	White=5     	Black=11} 1/2-1/2